Workbook

Sheet MATRIZ DE INDICADORES
D2: MACROPROCESO ESTRATÉGICO | S2: CÓDIGO: ESGr027
D3: PROCESO GESTIÓN SISTEMAS INTEGRADOS - CALIDAD | S3: VERSIÓN: 8
D4: MATRIZ DE MEDICIÓN Y SEGUIMIENTO A LOS PROCESOS DE GESTIÓN | S4: VIGENCIA: 2023-07-28
S5: PÁGINA: 1 de 6
Q7: FECHA DE ACTUALIZACIÓN: | S7: AÑO | T7: MES | U7: DÍA
S8: 2023 | T8: 4 | U8: 13
B10: ALINEACIÓN DE LOS INDICADORES CON LOS DOCUMENTOS ESTRATÉGICOS Y LOS OBJETIVOS DE CALIDAD
B12: PROCESO GESTIÓN | C12: FRENTES DEL PLAN ESTRATÉGICO | D12: LINEAMIENTOS DE LA POLÍTICA DE CALIDAD | E12: OBJETIVOS DE CALIDAD | F12: OBJETIVO GENERAL DEL PROCESO | G12: OBJETIVOS ESPECÍFICOS | H12: NOMBRE INDICADOR | I12: FÓRMULA | J12: TIPO DE INDICADOR | K12: SEGUIMIENTO MEDICIÓN | L12: META | M12: ACTIVIDAD | N12: RESPONSABLE DE LA ACTIVIDAD | O12: ¿QUÉ RECURSOS SE REQUIEREN? | P12: FECHA EJECUCIÓN DE ACTIVIDADES | Q12: EVIDENCIA | R12: ¿CUÁNDO FINALIZARÁ? | S12: RESULTADO | T12: NIVEL OBTENIDO | U12: ACCESO
B13: Admisiones y Registro | C13: Frente Estratégico VI: Organización Universitaria Digital. | D13: Se legitima como una organización social del conocimiento y el aprendizaje que se compromete con el pensamiento basado en riesgos y el mejoramiento continuo mediante buenas prácticas administrativas y académicas en búsqueda de la acreditación de programas y la acreditación institucional | E13: Lograr la acreditación de programas y la acreditación institucional de acuerdo a la planificación de las metas institucionales resultantes de los ejercicios de autoevaluación y acreditación | F13: Administrar y controlar las actividades de Admisiones y Registro, para garantizar el cumplimiento de los requisitos y normas vigentes sobre la selección, admisión, permanencia, promoción y graduación de los estudiantes de la Universidad de Cundinamarca. | G13: Asignar los cupos disponibles por cada vigencia por medio del proceso de selección y admisión de estudiantes. | H13: Tasa de admitidos (Capacidad instalada) | I13: Número de admitidos conforme a lo cupos disponibles * 100 / cupos disponibles por registro calificado | J13: Acreditación | K13: SEMESTRAL | L13: 0.95 | M13: Solicitar oferta académica a Vicerrectoria Académica para cada vigencia. | N13: Jefe de Oficina de Admisiones y Registro - Vicerrectoria Academica. | O13: Recurso Humano. Recurso tecnologico. | P13: SEMESTRAL (IPA Y IIPA 2023) | Q13: Correo electronico de la oferta academica | R13: VIGENCIA 2023 | S13: 0.94 | T13: BUENO | U13: MAR-4
M14: Parametrizar aplicativo Academusoft del formulario de Inscripcion. | N14: Jefe de Oficina de Admisiones y Registro | O14: Recurso tecnologico. | P14: SEMESTRAL (IPA Y IIPA 2023) | Q14: Aplicativo academusoft parametrizado | R14: VIGENCIA 2023
M15: Preseleccionar considerando los mejores puntajes obtenidos en la prueba de estado ICFES. | N15: Jefe de Oficina de Admisiones y Registro | O15: Recurso tecnologico. | P15: SEMESTRAL (IPA Y IIPA 2023) | Q15: Aplicativo academusoft parametrizado | R15: VIGENCIA 2023
M16: Aplicar pruebas y/o entrevistas de selección para los programas de Pregrado | N16: Director de Programa- Coordinadores | O16: Recurso Humano y Tecnologico | P16: SEMESTRAL (IPA Y IIPA 2023) | Q16: Cronograma de pruebas y Calendario Academico | R16: VIGENCIA 2023
M17: Verificar y consolidar resultados de las pruebas. | N17: Jefe de Oficina de Admisiones y Registro - Funcionario de Admisione y Registro. | O17: Recurso Humano | P17: SEMESTRAL (IPA Y IIPA 2023) | Q17: Correo electronico con el listados de los resultados | R17: VIGENCIA 2023
M18: Recepcionar listas de admitidos por parte de los directores de programa. | N18: Funcionario Oficina de Admisiones y Registro.- Direcciones de Programa. | O18: Recurso Humano | P18: SEMESTRAL (IPA Y IIPA 2023) | Q18: Lista de admitidos . | R18: VIGENCIA 2023
B19: Admisiones y Registro | C19: Frente Estratégico VI: Organización Universitaria Digital. | D19: Se legitima como una organización social del conocimiento y el aprendizaje que se compromete con el pensamiento basado en riesgos y el mejoramiento continuo mediante buenas prácticas administrativas y académicas en búsqueda de la acreditación de programas y la acreditación institucional | E19: Lograr la acreditación de programas y la acreditación institucional de acuerdo a la planificación de las metas institucionales resultantes de los ejercicios de autoevaluación y acreditación | F19: Administrar y controlar las actividades de Admisiones y Registro, para garantizar el cumplimiento de los requisitos y normas vigentes sobre la selección, admisión, permanencia, promoción y graduación de los estudiantes de la Universidad de Cundinamarca. | G19: Asegurar la matrícula académica del 95% de los admitidos, conforme a los cupos disponibles por periodo en la vigencia 2023. | H19: Tasa de matriculados | I19: Número de matriculados efectivos * 100 / total de número de admitidos conforme a lo cupos disponibles | J19: Acreditación | K19: SEMESTRAL | L19: 0.95 | M19: Solicitar la publicación del listado de admitidos a la Oficina Asesora de Comunicaciones. | N19: Funcionario Oficina de la Admisiones y Registro. | O19: Recurso tecnologico. | P19: SEMESTRAL (IPA Y IIPA 2023) | Q19: lista de admitidos publicados en la pagina wen institucional . | R19: VIGENCIA 2023 | S19: 0.91 | T19: BUENO | U19: MAR-5
M20: Parametrizar el sistema, (aplicativo Academusoft) para el registro de la matrícula académica de los programas de pregrado | N20: Jefe de Oficina de Admisiones y Registro | O20: Recurso tecnologico. | P20: SEMESTRAL (IPA Y IIPA 2023) | Q20: Aplicativo academusoft parametrizado | R20: VIGENCIA 2023
M21: Generar liquidación a estudiantes antiguos y nuevos regulares | N21: Tesoreria | O21: Recurso tecnologico. | P21: SEMESTRAL (IPA Y IIPA 2023) | Q21: Recibo de liquidacion | R21: VIGENCIA 2023
M22: Solicitar a la oficina de Desarrollo Académico los horarios base de todos los programas de pregrado de los estudiantes nuevos regulares. | N22: Jefe y funcionario oficina de Admisiones y Registro Oficina de Apoyo Académico | O22: Recurso Humano | P22: SEMESTRAL (IPA Y IIPA 2023) | Q22: Correo electronico de solicitud a Desarrollo Academico. | R22: VIGENCIA 2023
M23: Realizar el registro académico de los núcleos temáticos o campos de aprendizaje de estudiantes nuevos regulares. | N23: Jefe y funcionario oficina de Admisiones y Registro. | O23: Recurso tecnologico. | P23: SEMESTRAL (IPA Y IIPA 2023) | Q23: Horario del estudiante | R23: VIGENCIA 2023
B24: Admisiones y Registro | C24: Frente Estratégico VI: Organización Universitaria Digital. | D24: Se legitima como una organización social del conocimiento y el aprendizaje que se compromete con el pensamiento basado en riesgos y el mejoramiento continuo mediante buenas prácticas administrativas y académicas en búsqueda de la acreditación de programas y la acreditación institucional | E24: Lograr la acreditación de programas y la acreditación institucional de acuerdo a la planificación de las metas institucionales resultantes de los ejercicios de autoevaluación y acreditación | F24: Administrar y controlar las actividades de Admisiones y Registro, para garantizar el cumplimiento de los requisitos y normas vigentes sobre la selección, admisión, permanencia, promoción y graduación de los estudiantes de la Universidad de Cundinamarca. | G24: Asegurar la actualización de información para el seguimiento a estudiantes con posible pérdida de condición de estudiante según normatividad vigente para la vigencia 2023. | H24: Tasa de perdida de condición de estudiante | I24: Número de estudiantes que pierden condición de estudiante acorde con el reglamento estudiantil * 100 / total de estudiantes | J24: Acreditación | K24: SEMESTRAL | L24: 0.02 | M24: Descargar reporte de los estudiantes con perdida de calidad de estudiante. | N24: Direccion de Sistemas y Tecnologia | O24: Recurso tecnologico. | P24: SEMESTRAL (IPA Y IIPA 2023) | Q24: Reporte de Estudiantes | R24: VIGENCIA 2023 | S24: 0.02 | T24: EXCELENTE | U24: MAR-7
M25: Aplicar perdidad de Calidad conforme a los acuerdos 010 y 027 (Reglamentos estudiantiles). | N25: Direccion de Sistemas y Tecnologia | O25: Recurso tecnologico. | P25: SEMESTRAL (IPA Y IIPA 2023) | Q25: Reporte de Estudiantes con Perdida de Calidad de Estudiante | R25: VIGENCIA 2023
M26: Cambiar situacion academica del estudiante a "Perdida de Calidad de estudiante" en el aplicativo Ademosuf | N26: Direccion de Sistemas y Tecnologia | O26: Recurso tecnologico. | P26: SEMESTRAL (IPA Y IIPA 2023) | Q26: Cambio de situacion academica Aplicativo Academosuft | R26: VIGENCIA 2023
M27: Reportar estudiantes con perdida a Vice rectoria Academica. | N27: Jefe y funcionario oficina de Admisiones y Registro. | O27: Recurso Humano | P27: SEMESTRAL (IPA Y IIPA 2023) | Q27: Correo electronico del listado de los estudiantes | R27: VIGENCIA 2023
M28: Notificar a cada estudiante de la Perdida de Calidad de Estudiante. | N28: Jefe y funcionario oficina de Admisiones y Registro. | O28: Recurso Humano | P28: SEMESTRAL (IPA Y IIPA 2023) | Q28: Correo electronico de notificacion po cada estudiante. | R28: VIGENCIA 2023
B29: Admisiones y Registro | D29: Se legitima como una organización social del conocimiento y el aprendizaje que se compromete con el pensamiento basado en riesgos y el mejoramiento continuo mediante buenas prácticas administrativas y académicas en búsqueda de la acreditación de programas y la acreditación institucional, enfocándose en el bienestar de la comunidad universitaria como factor constitutivo de la vida y la libertad y la consolidación de una organización universitaria inteligente con alma y corazón. | E29: Mejorar continuamente el desempeño de los procesos a través de la implementación de buenas prácticas institucionales y de la aplicación de los mecanismos dispuestos por la universidad de Cundinamarca, para la constitución de una organización universitaria inteligente con alma y corazón | F29: Administrar y controlar las actividades de Admisiones y Registro, para garantizar el cumplimiento de los requisitos y normas vigentes sobre la selección, admisión, permanencia, promoción y graduación de los estudiantes de la Universidad de Cundinamarca. | G29: Analizar el nivel de satisfacción de la comunidad universitaria para describir factores/ acciones de mejora en la vigencia 2023. | H29: Percepción de satisfacción de los estudiantes | I29: (Total encuestas calificación mayor a 4) *100 / Total encuestas | K29: SEMESTRAL | L29: 0.85 | M29: Elaboracion de Encuesta instucional | N29: Direccion de Planeacion Institucional | O29: Recurso tecnologico. | P29: SEMESTRAL (IPA Y IIPA 2023) | Q29: Instrumento de encuesta | R29: VIGENCIA 2023 | S29: 0.75 | T29: BUENO | U29: MAR-9
M30: Compartir encuesta institucional para su diligenciamiento. | N30: Direccion de Planeacion Institucional - Oficina de Admisiones y Registro. | O30: Recurso Humano | P30: SEMESTRAL (IPA Y IIPA 2023) | Q30: Codigo QR /LINK Instrumento de encuesta | R30: VIGENCIA 2023
M31: Aplicar encuesta institucional a la comunidad Universitaria. | N31: Comunidad Universitaria | O31: Recurso Humano. Recurso tecnologico. | P31: SEMESTRAL (IPA Y IIPA 2023) | Q31: Codigo QR /LINK Instrumento de encuesta diligenciado. | R31: VIGENCIA 2023
M32: Solicitar resultados de Encuesta de la Oficina de Admisiones y Registro . | N32: Funcionario de la Oficina de Admisiones y Registro. | O32: Recurso tecnologico. | P32: SEMESTRAL (IPA Y IIPA 2023) | Q32: Resultado de encuesta. | R32: VIGENCIA 2023
M33: Analizar resultados de la Encuesta institucional de la Ofician de Admisiones y Registro . | N33: Jefe y funcionario oficina de Admisiones y Registro. | O33: Recurso Humano | P33: SEMESTRAL (IPA Y IIPA 2023) | Q33: Analisis de Encuesta indicadores | R33: VIGENCIA 2023
B47: Diagonal 18 No. 20-29 Fusagasugá – Cundinamarca Teléfono (601) 8281483 Línea Gratuita 018000180414 www.ucundinamarca.edu.co E-mail: info@ucundinamarca.edu.co NIT: 890.680.062-2
B48: Documento controlado por el Sistema de Gestión de la Calidad Asegúrese que corresponde a la última versión consultando el Portal Institucional

Sheet MAR-4
B2: REGRESAR
E5: MACROPROCESO ESTRATÉGICO | M5: CÓDIGO: ESGr027
E6: PROCESO GESTIÓN SISTEMAS INTEGRADOS - CALIDAD | M6: VERSIÓN: 8
E7: MATRIZ DE MEDICIÓN Y SEGUIMIENTO A LOS PROCESOS DE GESTIÓN | M7: VIGENCIA: 2023-07-28
M8: PÁGINA: 2 de 6
C10: FICHA DE INDICADOR
C12: MACROPROCESO | E12: Misional | I12: NOMBRE DEL INDICADOR | K12: Tasa de admitidos (Capacidad instalada)
C13: PROCESO GESTIÓN | E13: Admisiones y Registro
C14: RESPONSABLE DE MEDICIÓN | E14: Jefe de Oficina Admisiones y Registro
C16: 1. COMPORTAMIENTO DE INDICADOR
C17: CLASIFICACIÓN DE LA MEDICIÓN | E17: 1 | H17: TIPO DE INDICADOR | J17: Acreditación | L17: META | N17: 0.95
C18: FORMULA | E18: NUMERADOR | G18: Número de admitidos conforme a lo cupos disponibles * 100 | L18: UNIDAD DE MEDIDA | N18: Porcentaje
E19: DENOMINADOR | G19: cupos disponibles por registro calificado
C20: TENDENCIA | E20: Positiva | H20: NIVEL DE SEGREGACIÓN * | J20: Por Programa Académico | L20: ESCALA
L21: Deficiente | M21: Aceptable | N21: Bueno | O21: Excelente
L22: 0% - 69.9% | M22: 70% - 79.9% | N22: 80% - 95% | O22: >95.1%
C23: ORIGEN DE DATOS NUMERADOR | E23: Listado en Excel de inscritos y admitidos | H23: FRECUENCIA DE LA MEDICIÓN | J23: SEMESTRAL | L23: FRECUENCIA DE RESULTADO | N23: SEMESTRAL
C24: ORIGEN DE DATOS DENOMINADOR | E24: Registros calificados
C26: RESULTADOS
J27: ANÁLISIS DE DATOS Los datos indican un crecimiento en los acompañamientos entre el primer trimestre y el segundo trimestre de mas del 100%, por la contratación del personal de la oficina En el tercer trimestre se muestra un decrecimiento con respecto al periodo anterior por las vacaciones a mitad de año, las personas se reintegraron entre julio y agosto.
J28: Para la vigencia IPA 2023, se realizó la apertura al proceso de inscripción, selección y admisión en la sede, seccionales y extensiones de acuerdo a la oferta académica de los programas de pregrado, la cual inició con la publicación en el portal web institucional, (inscripción en línea), desde el 03 de abril al 03 de mayo de 2023 conforme al calendario académico, con el fin de que los aspirantes realizaran su inscripción de manera efectiva, cabe resaltar que para la anterior vigencia y está presente, se da apertura a dos programas académicos como Ingeniería de Software en la Extensión Soacha complementando la Tecnología de Software existente e Ingeniería Industrial en la extensión de Chía. Este proceso se encuentra reglamentado bajo el Acuerdo 001 de 2007, una vez la inscripción se inicia el proceso de preselección de aspirantes los cuales presentan las pruebas correspondientes. Teniendo en cuenta los resultados del proceso se genera el listado de admitidos a los programas académicos los cuales fueron publicados en el portal web institucional, para conocimiento de la comunidad en general. Respecto a los cupos de cada programa académico serán establecidos de acuerdo al registro calificado vigente, los cupos para la admisión IPA 2023 fueron establecidos por directriz del Consejo Académico los cuales algunos programas fueron reducidos de acuerdo al comportamiento de las inscripciones.
J34: ACCIÓN FORMULADA Reformular la meta para el próximo año dependiendo de los recursos asignados.
J35: Para este proceso de inscripción, selección y admisión se estableceran acciones complementarias como el trabajo mancomunado con la Dirección de Bienestar Universitario, para optimizar los tiempos, recursos dispuesto para la presentación de pruebas, la consecución de cronogramas con fechas y tiempos establecidos por aspirante para la entrevista con las coordinaciones de cada programa académico, también la estrategia de divulgación como las visitas a los colegios de públicos y privados del Municipio con el fin dar a conocer la oferta académica de la Universidad de Cundinamarca, asistencia a ferias Universitarias, divulgación por el portal web institucional, redes sociales junto a la Oficina Asesora de Comunicaciones para la población en proceso de selección, que permitieron dar continuidad al procedimiento de forma ágil y generar la publicación de los listados de admitidos en los tiempos señalados dentro del calendario académico, para así, analizar la escogencia de los aspirantes admitidos como figura opcional, asegurando que la disponibilidad de cupos según registros calificados por programas académicos sean aprovechados en su totalidad.
J41: RESPONSABLE
J42: =E14 -> Jefe de Oficina Admisiones y Registro
C45: PERIODO DE EVALUACIÓN
C46: MES | D46: =IF(J23="MENSUAL","ENERO",IF(J23="TRIMESTRAL","MARZO",IF(J23="SEMESTRAL","JUNIO",IF(J23="ANUAL",YEAR(TODAY()),"")))) -> JUNIO | E46: =IF(J23="MENSUAL","FEBRERO",IF(J23="TRIMESTRAL","JUNIO",IF(J23="SEMESTRAL","DICIEMBRE",""))) -> DICIEMBRE | F46: =IF(J23="MENSUAL","MARZO",IF(J23="TRIMESTRAL","SEPTIEMBRE","")) ->  | G46: =IF(J23="MENSUAL","ABRIL",IF(J23="TRIMESTRAL","DICIEMBRE","")) ->  | H46: =IF(J23="MENSUAL","MAYO","") ->  | I46: =IF(J23="MENSUAL","JUNIO","") ->  | J46: =IF(J23="MENSUAL","JULIO","") ->  | K46: =IF(J23="MENSUAL","AGOSTO","") ->  | L46: =IF(J23="MENSUAL","SEPTIEMBRE","") ->  | M46: =IF(J23="MENSUAL","OCTUBRE","") ->  | N46: =IF(J23="MENSUAL","NOVIEMBRE","") ->  | O46: =IF(J23="MENSUAL","DICIEMBRE","") -> 
C47: =G18 -> Número de admitidos conforme a lo cupos disponibles * 100 | D47: 1451
C48: =G19 -> cupos disponibles por registro calificado | D48: 1538
C49: VALOR | D49: =+D47/D48 -> 0.9434330299 | E49: =IFERROR(IF($E$17=1,E47/E48,IF($E$17=2,E47,"")),"") -> 
C50: META PONDERADA | D50: 0.95 | H50: =IF(AND($N$23="ANUAL",$J$23="MENSUAL"),$N$17/12+G50,IF(AND(N23="SEMESTRAL",J23="MENSUAL"),N17/6+G50,IF(AND(N23="TRIMESTRAL",J23="MENSUAL"),N17/3+G50,IF(AND(N23="MENSUAL",J23="MENSUAL"),N17,"")))) ->  | I50: =IF(AND($N$23="ANUAL",$J$23="MENSUAL"),$N$17/12+H50,IF(AND(N23="SEMESTRAL",J23="MENSUAL"),N17/6+H50,IF(AND(N23="TRIMESTRAL",J23="MENSUAL"),N17/3+H50,IF(AND(N23="MENSUAL",J23="MENSUAL"),N17,"")))) ->  | J50: =IF(AND($N$23="ANUAL",$J$23="MENSUAL"),$N$17/12+I50,IF(AND(N23="SEMESTRAL",J23="MENSUAL"),N17/6,IF(AND(N23="TRIMESTRAL",J23="MENSUAL"),N17/3,IF(AND(N23="MENSUAL",J23="MENSUAL"),N17,"")))) ->  | K50: =IF(AND($N$23="ANUAL",$J$23="MENSUAL"),$N$17/12+J50,IF(AND(N23="SEMESTRAL",J23="MENSUAL"),N17/6+J50,IF(AND(N23="TRIMESTRAL",J23="MENSUAL"),N17/3+J50,IF(AND(N23="MENSUAL",J23="MENSUAL"),N17,"")))) ->  | L50: =IF(AND($N$23="ANUAL",$J$23="MENSUAL"),$N$17/12+K50,IF(AND(N23="SEMESTRAL",J23="MENSUAL"),N17/6+K50,IF(AND(N23="TRIMESTRAL",J23="MENSUAL"),N17/3+K50,IF(AND(N23="MENSUAL",J23="MENSUAL"),N17,"")))) ->  | M50: =IF(AND($N$23="ANUAL",$J$23="MENSUAL"),$N$17/12+L50,IF(AND(N23="SEMESTRAL",J23="MENSUAL"),N17/6+L50,IF(AND(N23="TRIMESTRAL",J23="MENSUAL"),N17/3,IF(AND(N23="MENSUAL",J23="MENSUAL"),N17,"")))) ->  | N50: =IF(AND($N$23="ANUAL",$J$23="MENSUAL"),$N$17/12+M50,IF(AND(N23="SEMESTRAL",J23="MENSUAL"),N17/6+M50,IF(AND(N23="TRIMESTRAL",J23="MENSUAL"),N17/3+M50,IF(AND(N23="MENSUAL",J23="MENSUAL"),N17,"")))) ->  | O50: =IF(AND($N$23="ANUAL",$J$23="MENSUAL"),$N$17/12+N50,IF(AND(N23="SEMESTRAL",J23="MENSUAL"),N17/6+N50,IF(AND(N23="TRIMESTRAL",J23="MENSUAL"),N17/3+N50,IF(AND(N23="MENSUAL",J23="MENSUAL"),N17,"")))) -> 
C52: NIVEL DE SEGREGACIÓN *
C53: UNIDAD SEGREGADA (Ej. Facultad, Programa Académico, Área) | G53: RESULTADO | K53: ANALISIS DE DATOS SEGREGADO
C54: Sede Fusagasugá | G54: =375/369 -> 1.016260163 | K54: Del total de los cupos disponibles según registros calificados por programas en la Sede Fusagasugá siendo 369, se admiten en listados 375 en los diferentes programas académicos.
C55: Seccional Girardot | G55: =136/145 -> 0.9379310345 | K55: Del total de los cupos disponibles según registros calificados por programas en la Seccional Girardot siendo 145 , se admiten en listados 136 en los diferentes programas académicos.
C56: Seccional Ubaté | G56: =144/175 -> 0.8228571429 | K56: Del total de los cupos disponibles según registros calificados por programas en la Seccional Ubate siendo 175, se admiten en listados 144 en los diferentes programas académicos.
C57: Extensión Facatativá | G57: =379/355 -> 1.067605634 | K57: Del total de los cupos disponibles según registros calificados por programas en la Extensión Facatativa siendo 355, se admiten en listados 379 en los diferentes programas académicos.
C58: Extensión Chía | G58: =207/280 -> 0.7392857143 | K58: Del total de los cupos disponibles según registros calificados por programas en la Extensión Chía siendo 280, se admiten en listados 207 en los diferentes programas académicos.
C59: Extensión Zipaquirá | G59: =20/20 -> 1 | K59: Del total de los cupos disponibles según registros calificados por programas en la Extension Zipaquira siendo 20, se admiten en listados 20 en los diferentes programas académicos.
C60: Extensión Soacha | G60: =188/194 -> 0.9690721649 | K60: Del total de los cupos disponibles según registros calificados por programas en la Extension Soacha siendo 194, se admiten en listados 188 en los diferentes programas académicos.
C62: Diagonal 18 No. 20-29 Fusagasugá – Cundinamarca Teléfono (601) 8281483 Línea Gratuita 018000180414 www.ucundinamarca.edu.co E-mail: info@ucundinamarca.edu.co NIT: 890.680.062-2
C63: Documento controlado por el Sistema de Gestión de la Calidad Asegúrese que corresponde a la última versión consultando el Portal Institucional
G73: Estratégico | J73: Eficacia
G74: Misional | J74: Eficiencia
G75: Apoyo | J75: Acreditación
G76: Seguimiento, Medición, Análisis y Evaluación | J76: Positiva
G77: Direccionamiento Estratégico | J77: Negativa
G78: Planeación Institucional | J78: Por Unidad Regional
G79: Proyectos Especiales y Relaciones Interinstitucionales | J79: Por Facultad
G80: Sistemas Integrados | J80: Por Programa Académico
G81: Autoevaluación y Acreditación | J81: Por área
G82: Comunicaciones | J82: Por Laboratorio
G83: Formación y Aprendizaje | J83: Otros
G84: Ciencia, Tecnología e Innovación | J84: No Aplica
G85: Interacción Social Universitaria
G86: Bienestar Universitario
G87: Admisiones y Registro
G88: Graduados
G89: Dialogando con el Mundo
G90: Talento Humano
G91: Jurídica
G92: Financiera
G93: Sistemas y Tecnología
G94: Bienes y Servicios
G95: Documental
G96: Apoyo Académico
G97: Control Interno
G98: Control Disciplinario
G99: Servicio de Atención al Ciudadano

Sheet MAR-5
B2: REGRESAR
E5: MACROPROCESO ESTRATÉGICO | M5: CÓDIGO: ESGr027
E6: PROCESO GESTIÓN SISTEMAS INTEGRADOS - CALIDAD | M6: VERSIÓN: 8
E7: MATRIZ DE MEDICIÓN Y SEGUIMIENTO A LOS PROCESOS DE GESTIÓN | M7: VIGENCIA: 2023-07-28
M8: PÁGINA: 3 de 6
C10: FICHA DE INDICADOR
C12: MACROPROCESO | E12: Misional | I12: NOMBRE DEL INDICADOR | K12: Tasa de matriculados
C13: PROCESO GESTIÓN | E13: Admisiones y Registro
C14: RESPONSABLE DE MEDICIÓN | E14: Jefe de Oficina Admisiones y Registro
C16: 1. COMPORTAMIENTO DE INDICADOR
C17: CLASIFICACIÓN DE LA MEDICIÓN | E17: 4 | H17: TIPO DE INDICADOR | J17: Acreditación | L17: META | N17: 0.95
C18: FORMULA | E18: NUMERADOR | G18: Número de matriculados efectivos * 100 | L18: UNIDAD DE MEDIDA | N18: Porcentaje
E19: DENOMINADOR | G19: total de número de admitidos conforme a lo cupos disponibles
C20: TENDENCIA | E20: Positiva | H20: NIVEL DE SEGREGACIÓN * | J20: Por Programa Académico | L20: ESCALA
L21: Deficiente | M21: Aceptable | N21: Bueno | O21: Excelente
L22: 0% - 69.9% | M22: 70% - 79.9% | N22: 80% - 95% | O22: >95.1%
C23: ORIGEN DE DATOS NUMERADOR | E23: Listado en Excel de inscritos y admitidos | H23: FRECUENCIA DE LA MEDICIÓN | J23: SEMESTRAL | L23: FRECUENCIA DE RESULTADO | N23: SEMESTRAL
C24: ORIGEN DE DATOS DENOMINADOR | E24: Listado en Excel de inscritos y admitidos
C26: RESULTADOS
J27: ANÁLISIS DE DATOS
J28: Los aspirantes admitidos deben cancelar su matrícula financiera dentro de los plazos establecidos en el calendario académico; si por alguna razón desiste del cupo o no realiza el pago se ha establecido la figura de aspirante opcional, que se deriva de los aspirantes que cumplen con todos los requisitos de selección, pero quedan excluidos de la lista de admitidos teniendo en cuenta los cupos establecidos por cada programa académico priorizados por el puntaje obtenido. Aun así, en su gran mayoría ocuparon los cupos disponibles admitidos, algunos no legalizan su matrícula financiera por diversos factores, entre ellos. • Admitidos que nos son beneficiarios de la política de gratuidad, por lo tanto, desisten del cupo. • Han presentado proceso de admisión en otras IES. • Falta de atención a las fechas límites de pago, establecidas en el calendario académico. • Desistimiento del cupo por motivos personales. Nota: Las fechas establecidas dentro de calendario académico para que los admitidos puedan legalizar su matrícula financiera están aprobadas por consejo académico y publicadas en la página web institucional.
J34: ACCIÓN FORMULADA
J35: Para continuar con el proceso de admisión, la oficina de Admisiones y registro se brindará acompañamiento por vía zoom, llamada telefónica e instructivos, a cada uno de los admitidos para el diligenciamiento de la CARACTERIZACIÓN INSTITUCIONAL el cual es insumo para acceder a la Política de Gratuidad bajo el Decreto 1667 de 2021, requisito para la emisión del recibo de pago y finalizar la matricula con éxito. Una vez se cuente con el pago de la matrícula de todos los admitidos, se procede a realizar el registro académico de los estudiantes nuevos regulares. Finalmente, Se logra evidenciar el compromiso adquirido tanto por las partes interesadas como por la Comunidad Universitaria – Administrativa y gubernamental, para brindar apoyo al pago de matrícula.
J41: RESPONSABLE
J42: =E14 -> Jefe de Oficina Admisiones y Registro
C45: PERIODO DE EVALUACIÓN
C46: MES | D46: =IF(J23="MENSUAL","ENERO",IF(J23="TRIMESTRAL","MARZO",IF(J23="SEMESTRAL","JUNIO",IF(J23="ANUAL",YEAR(TODAY()),"")))) -> JUNIO | E46: =IF(J23="MENSUAL","FEBRERO",IF(J23="TRIMESTRAL","JUNIO",IF(J23="SEMESTRAL","DICIEMBRE",""))) -> DICIEMBRE | F46: =IF(J23="MENSUAL","MARZO",IF(J23="TRIMESTRAL","SEPTIEMBRE","")) ->  | G46: =IF(J23="MENSUAL","ABRIL",IF(J23="TRIMESTRAL","DICIEMBRE","")) ->  | H46: =IF(J23="MENSUAL","MAYO","") ->  | I46: =IF(J23="MENSUAL","JUNIO","") ->  | J46: =IF(J23="MENSUAL","JULIO","") ->  | K46: =IF(J23="MENSUAL","AGOSTO","") ->  | L46: =IF(J23="MENSUAL","SEPTIEMBRE","") ->  | M46: =IF(J23="MENSUAL","OCTUBRE","") ->  | N46: =IF(J23="MENSUAL","NOVIEMBRE","") ->  | O46: =IF(J23="MENSUAL","DICIEMBRE","") -> 
C47: =G18 -> Número de matriculados efectivos * 100 | D47: 1327
C48: =G19 -> total de número de admitidos conforme a lo cupos disponibles | D48: 1451
C49: VALOR | D49: =+D47/D48 -> 0.9145416954 | E49: =IFERROR(IF($E$17=1,E47/E48,IF($E$17=2,E47,"")),"") -> 
C50: META PONDERADA | D50: 0.95 | F50: =IF(AND(N23="ANUAL",J23="MENSUAL"),N17/12+E50,IF(AND(N23="ANUAL",J23="TRIMESTRAL"),N17/4+E50,IF(AND(N23="SEMESTRAL",J23="MENSUAL"),N17/6+E50,IF(AND(N23="SEMESTRAL",J23="TRIMESTRAL"),N17/2,IF(AND(N23="TRIMESTRAL",J23="MENSUAL"),N17/3+E50,IF(AND(N23="TRIMESTRAL",J23="TRIMESTRAL"),N17,IF(AND(N23="MENSUAL",J23="MENSUAL"),N17,""))))))) ->  | G50: =IF(AND(N23="ANUAL",J23="MENSUAL"),N17/12+F50,IF(AND(N23="ANUAL",J23="TRIMESTRAL"),N17/4+F50,IF(AND(N23="SEMESTRAL",J23="MENSUAL"),N17/6+F50,IF(AND(N23="SEMESTRAL",J23="TRIMESTRAL"),N17/2+F50,IF(AND(N23="TRIMESTRAL",J23="MENSUAL"),N17/3,IF(AND(N23="TRIMESTRAL",J23="TRIMESTRAL"),N17,IF(AND(N23="MENSUAL",J23="MENSUAL"),N17,""))))))) ->  | H50: =IF(AND($N$23="ANUAL",$J$23="MENSUAL"),$N$17/12+G50,IF(AND(N23="SEMESTRAL",J23="MENSUAL"),N17/6+G50,IF(AND(N23="TRIMESTRAL",J23="MENSUAL"),N17/3+G50,IF(AND(N23="MENSUAL",J23="MENSUAL"),N17,"")))) ->  | I50: =IF(AND($N$23="ANUAL",$J$23="MENSUAL"),$N$17/12+H50,IF(AND(N23="SEMESTRAL",J23="MENSUAL"),N17/6+H50,IF(AND(N23="TRIMESTRAL",J23="MENSUAL"),N17/3+H50,IF(AND(N23="MENSUAL",J23="MENSUAL"),N17,"")))) ->  | J50: =IF(AND($N$23="ANUAL",$J$23="MENSUAL"),$N$17/12+I50,IF(AND(N23="SEMESTRAL",J23="MENSUAL"),N17/6,IF(AND(N23="TRIMESTRAL",J23="MENSUAL"),N17/3,IF(AND(N23="MENSUAL",J23="MENSUAL"),N17,"")))) ->  | K50: =IF(AND($N$23="ANUAL",$J$23="MENSUAL"),$N$17/12+J50,IF(AND(N23="SEMESTRAL",J23="MENSUAL"),N17/6+J50,IF(AND(N23="TRIMESTRAL",J23="MENSUAL"),N17/3+J50,IF(AND(N23="MENSUAL",J23="MENSUAL"),N17,"")))) ->  | L50: =IF(AND($N$23="ANUAL",$J$23="MENSUAL"),$N$17/12+K50,IF(AND(N23="SEMESTRAL",J23="MENSUAL"),N17/6+K50,IF(AND(N23="TRIMESTRAL",J23="MENSUAL"),N17/3+K50,IF(AND(N23="MENSUAL",J23="MENSUAL"),N17,"")))) ->  | M50: =IF(AND($N$23="ANUAL",$J$23="MENSUAL"),$N$17/12+L50,IF(AND(N23="SEMESTRAL",J23="MENSUAL"),N17/6+L50,IF(AND(N23="TRIMESTRAL",J23="MENSUAL"),N17/3,IF(AND(N23="MENSUAL",J23="MENSUAL"),N17,"")))) ->  | N50: =IF(AND($N$23="ANUAL",$J$23="MENSUAL"),$N$17/12+M50,IF(AND(N23="SEMESTRAL",J23="MENSUAL"),N17/6+M50,IF(AND(N23="TRIMESTRAL",J23="MENSUAL"),N17/3+M50,IF(AND(N23="MENSUAL",J23="MENSUAL"),N17,"")))) ->  | O50: =IF(AND($N$23="ANUAL",$J$23="MENSUAL"),$N$17/12+N50,IF(AND(N23="SEMESTRAL",J23="MENSUAL"),N17/6+N50,IF(AND(N23="TRIMESTRAL",J23="MENSUAL"),N17/3+N50,IF(AND(N23="MENSUAL",J23="MENSUAL"),N17,"")))) -> 
C52: NIVEL DE SEGREGACIÓN *
C53: UNIDAD SEGREGADA (Ej. Facultad, Programa Académico, Área) | G53: RESULTADO | K53: ANALISIS DE DATOS SEGREGADO
C54: Sede Fusagasugá | G54: =339/375 -> 0.904 | K54: Finalizado el proceso de inscripcion, admision y selección, de los 375 admitidos para la Sede Fusagasugá, 339 de ellos realizan su matricula financiera y academica, finalizando el proceso con éxito.
C55: Seccional Girardot | G55: =128/136 -> 0.9411764706 | K55: Finalizado el proceso de inscripcion, admision y selección, de los 136 admitidos para la Seccional Girardot, 128 de ellos realizan su matricula financiera y academica, finalizando el proceso con éxito.
C56: Seccional Ubaté | G56: =137/144 -> 0.9513888889 | K56: Finalizado el proceso de inscripcion, admision y selección, de los 144 admitidos para la Sede Ubaté, 137 de ellos realizan su matricula financiera y academica, finalizando el proceso con éxito.
C57: Extensión Facatativá | G57: =349/379 -> 0.9208443272 | K57: Finalizado el proceso de inscripcion, admision y selección, de los 379 admitidos para la Extensión Facatativa, 349 de ellos realizan su matricula financiera y academica, finalizando el proceso con éxito.
C58: Extensión Chía | G58: =183/207 -> 0.884057971 | K58: Finalizado el proceso de inscripcion, admision y selección, de los 207 admitidos para la Extension Chía, 183 de ellos realizan su matricula financiera y academica, finalizando el proceso con éxito.
C59: Extensión Zipaquirá | G59: =20/20 -> 1 | K59: Finalizado el proceso de inscripcion, admision y selección, de los 20 admitidos para la Extesion Zipaquira 20 de ellos realizan su matricula financiera y academica, finalizando el proceso con éxito.
C60: Extensión Soacha | G60: =171/188 -> 0.9095744681 | K60: Finalizado el proceso de inscripcion, admision y selección, de los 188 admitidos para la Extension Soacha, 171 de ellos realizan su matricula financiera y academica, finalizando el proceso con éxito.
C62: Diagonal 18 No. 20-29 Fusagasugá – Cundinamarca Teléfono (601) 8281483 Línea Gratuita 018000180414 www.ucundinamarca.edu.co E-mail: info@ucundinamarca.edu.co NIT: 890.680.062-2
C63: Documento controlado por el Sistema de Gestión de la Calidad Asegúrese que corresponde a la última versión consultando el Portal Institucional
G72: Estratégico | J72: Eficacia
G73: Misional | J73: Eficiencia
G74: Apoyo | J74: Acreditación
G75: Seguimiento, Medición, Análisis y Evaluación | J75: Positiva
G76: Direccionamiento Estratégico | J76: Negativa
G77: Planeación Institucional | J77: Por Unidad Regional
G78: Proyectos Especiales y Relaciones Interinstitucionales | J78: Por Facultad
G79: Sistemas Integrados | J79: Por Programa Académico
G80: Autoevaluación y Acreditación | J80: Por área
G81: Comunicaciones | J81: Por Laboratorio
G82: Formación y Aprendizaje | J82: Otros
G83: Ciencia, Tecnología e Innovación | J83: No Aplica
G84: Interacción Social Universitaria
G85: Bienestar Universitario
G86: Admisiones y Registro
G87: Graduados
G88: Dialogando con el Mundo
G89: Talento Humano
G90: Jurídica
G91: Financiera
G92: Sistemas y Tecnología
G93: Bienes y Servicios
G94: Documental
G95: Apoyo Académico
G96: Control Interno
G97: Control Disciplinario
G98: Servicio de Atención al Ciudadano

Sheet MAR-7
B2: REGRESAR
E5: MACROPROCESO ESTRATÉGICO | M5: CÓDIGO: ESGr027
E6: PROCESO GESTIÓN SISTEMAS INTEGRADOS - CALIDAD | M6: VERSIÓN: 8
E7: MATRIZ DE MEDICIÓN Y SEGUIMIENTO A LOS PROCESOS DE GESTIÓN | M7: VIGENCIA: 2023-07-28
M8: PÁGINA: 4 de 6
C10: FICHA DE INDICADOR
C12: MACROPROCESO | E12: Misional | I12: NOMBRE DEL INDICADOR | K12: Tasa de perdida de condición de estudiante
C13: PROCESO GESTIÓN | E13: Admisiones y Registro
C14: RESPONSABLE DE MEDICIÓN | E14: Jefe de Oficina Admisiones y Registro
C16: 1. COMPORTAMIENTO DE INDICADOR
C17: CLASIFICACIÓN DE LA MEDICIÓN | E17: 4 | H17: TIPO DE INDICADOR | J17: Acreditación | L17: META | N17: 0.02
C18: FORMULA | E18: NUMERADOR | G18: Número de estudiantes que pierden condición de estudiante acorde con el reglamento estudiantil * 100 | L18: UNIDAD DE MEDIDA | N18: Porcentaje
E19: DENOMINADOR | G19: total de estudiantes
C20: TENDENCIA | E20: Negativa | H20: NIVEL DE SEGREGACIÓN * | J20: Por Facultad | L20: ESCALA
L21: Deficiente | M21: Aceptable | N21: Bueno | O21: Excelente
L22: >5.1% | M22: 5% - 4.1% | N22: 4% - 3% | O22: 2.9% - 0%
C23: ORIGEN DE DATOS NUMERADOR | E23: Listado de la Dirección de Sistemas y Tecnología | H23: FRECUENCIA DE LA MEDICIÓN | J23: SEMESTRAL | L23: FRECUENCIA DE RESULTADO | N23: SEMESTRAL
C24: ORIGEN DE DATOS DENOMINADOR | E24: Listado de la Dirección de Sistemas y Tecnología
C26: RESULTADOS
J27: ANÁLISIS DE DATOS
J28: Teniendo en cuenta lo establecido en acuerdo (POR EL CUAL SE REGLAMENTA EL ARTICULO 42 DEL ACUERDO No. 010 DEL 12 DE JULIO DE 2006 "POR EL CUAL SE EXPIDE EL REGLAMENTO ESTUDIANTIL PARA LOS PROGRAMAS DE PREGRADO DE LA UNIVERSIDAD DE CUNDINAMARCA") 003 acuerda en su artículo primero que el estudiante de pregrado que pierda por tercera vez un núcleo temático perderá la calidad de estudiante y el acuerdo 004 en su artículo primero acuerda que esta normatividad empieza a regir en el primero de enero de 2019, esta normatividad esta aplicada para los programas de plan antiguo es decir no resignificados. De acuerdo a la perdida de condición de estudiante se cuenta en este aspecto la normatividad y disposiciones orientadas en el ACUERDO 027 DE 2021 EN SU ARTICULO N°7, NUMERALES DE 01 AL 10, para los programas académicos con re significación curricular / rutas de aprendizaje numeral 07. donde indica El promedio ponderado acumulado sea inferior a tres dos (3.2) para los estudiantes de primer semestre el promedio acumulada será el mismos del semestre, de igual manera los estudiantes que pierdan tres veces el mismo campo de aprendizaje, perderán la condición de estudiante.
J34: ACCIÓN FORMULADA
J35: Con el fin de reducir la perdida de condición de estudiantes se realizará seguimiento a esta población presenten en cada periodo académico, tanto para los estudiantes de programas resignificados y no resignificados, a fin de identificarlos oportunamente, solicitar acompañamiento preventivo y establecer la aplicabilidad de la Normatividad Vigente. Implementando alertas tempranas para los estudiantes que están por perder las asignaturas por segunda y tercera vez a las coordinaciones de programa académico que permiten que la academia identifique posibles casos y pueda generar estrategias para disminuir el número de estudiantes con pérdida de su condición.
J41: RESPONSABLE
J42: =E14 -> Jefe de Oficina Admisiones y Registro
C45: PERIODO DE EVALUACIÓN
C46: MES | D46: =IF(J23="MENSUAL","ENERO",IF(J23="TRIMESTRAL","MARZO",IF(J23="SEMESTRAL","JUNIO",IF(J23="ANUAL",YEAR(TODAY()),"")))) -> JUNIO | E46: =IF(J23="MENSUAL","FEBRERO",IF(J23="TRIMESTRAL","JUNIO",IF(J23="SEMESTRAL","DICIEMBRE",""))) -> DICIEMBRE | F46: =IF(J23="MENSUAL","MARZO",IF(J23="TRIMESTRAL","SEPTIEMBRE","")) ->  | G46: =IF(J23="MENSUAL","ABRIL",IF(J23="TRIMESTRAL","DICIEMBRE","")) ->  | H46: =IF(J23="MENSUAL","MAYO","") ->  | I46: =IF(J23="MENSUAL","JUNIO","") ->  | J46: =IF(J23="MENSUAL","JULIO","") ->  | K46: =IF(J23="MENSUAL","AGOSTO","") ->  | L46: =IF(J23="MENSUAL","SEPTIEMBRE","") ->  | M46: =IF(J23="MENSUAL","OCTUBRE","") ->  | N46: =IF(J23="MENSUAL","NOVIEMBRE","") ->  | O46: =IF(J23="MENSUAL","DICIEMBRE","") -> 
C47: =G18 -> Número de estudiantes que pierden condición de estudiante acorde con el reglamento estudiantil * 100 | D47: 256
C48: =G19 -> total de estudiantes | D48: 12289
C49: VALOR | D49: =+D47/D48 -> 0.02083163805 | E49: =IFERROR(IF($E$17=1,E47/E48,IF($E$17=2,E47,"")),"") -> 
C50: META PONDERADA | D50: 0.02 | F50: =IF(AND(N23="ANUAL",J23="MENSUAL"),N17/12+E50,IF(AND(N23="ANUAL",J23="TRIMESTRAL"),N17/4+E50,IF(AND(N23="SEMESTRAL",J23="MENSUAL"),N17/6+E50,IF(AND(N23="SEMESTRAL",J23="TRIMESTRAL"),N17/2,IF(AND(N23="TRIMESTRAL",J23="MENSUAL"),N17/3+E50,IF(AND(N23="TRIMESTRAL",J23="TRIMESTRAL"),N17,IF(AND(N23="MENSUAL",J23="MENSUAL"),N17,""))))))) ->  | G50: =IF(AND(N23="ANUAL",J23="MENSUAL"),N17/12+F50,IF(AND(N23="ANUAL",J23="TRIMESTRAL"),N17/4+F50,IF(AND(N23="SEMESTRAL",J23="MENSUAL"),N17/6+F50,IF(AND(N23="SEMESTRAL",J23="TRIMESTRAL"),N17/2+F50,IF(AND(N23="TRIMESTRAL",J23="MENSUAL"),N17/3,IF(AND(N23="TRIMESTRAL",J23="TRIMESTRAL"),N17,IF(AND(N23="MENSUAL",J23="MENSUAL"),N17,""))))))) ->  | H50: =IF(AND($N$23="ANUAL",$J$23="MENSUAL"),$N$17/12+G50,IF(AND(N23="SEMESTRAL",J23="MENSUAL"),N17/6+G50,IF(AND(N23="TRIMESTRAL",J23="MENSUAL"),N17/3+G50,IF(AND(N23="MENSUAL",J23="MENSUAL"),N17,"")))) ->  | I50: =IF(AND($N$23="ANUAL",$J$23="MENSUAL"),$N$17/12+H50,IF(AND(N23="SEMESTRAL",J23="MENSUAL"),N17/6+H50,IF(AND(N23="TRIMESTRAL",J23="MENSUAL"),N17/3+H50,IF(AND(N23="MENSUAL",J23="MENSUAL"),N17,"")))) ->  | J50: =IF(AND($N$23="ANUAL",$J$23="MENSUAL"),$N$17/12+I50,IF(AND(N23="SEMESTRAL",J23="MENSUAL"),N17/6,IF(AND(N23="TRIMESTRAL",J23="MENSUAL"),N17/3,IF(AND(N23="MENSUAL",J23="MENSUAL"),N17,"")))) ->  | K50: =IF(AND($N$23="ANUAL",$J$23="MENSUAL"),$N$17/12+J50,IF(AND(N23="SEMESTRAL",J23="MENSUAL"),N17/6+J50,IF(AND(N23="TRIMESTRAL",J23="MENSUAL"),N17/3+J50,IF(AND(N23="MENSUAL",J23="MENSUAL"),N17,"")))) ->  | L50: =IF(AND($N$23="ANUAL",$J$23="MENSUAL"),$N$17/12+K50,IF(AND(N23="SEMESTRAL",J23="MENSUAL"),N17/6+K50,IF(AND(N23="TRIMESTRAL",J23="MENSUAL"),N17/3+K50,IF(AND(N23="MENSUAL",J23="MENSUAL"),N17,"")))) ->  | M50: =IF(AND($N$23="ANUAL",$J$23="MENSUAL"),$N$17/12+L50,IF(AND(N23="SEMESTRAL",J23="MENSUAL"),N17/6+L50,IF(AND(N23="TRIMESTRAL",J23="MENSUAL"),N17/3,IF(AND(N23="MENSUAL",J23="MENSUAL"),N17,"")))) ->  | N50: =IF(AND($N$23="ANUAL",$J$23="MENSUAL"),$N$17/12+M50,IF(AND(N23="SEMESTRAL",J23="MENSUAL"),N17/6+M50,IF(AND(N23="TRIMESTRAL",J23="MENSUAL"),N17/3+M50,IF(AND(N23="MENSUAL",J23="MENSUAL"),N17,"")))) ->  | O50: =IF(AND($N$23="ANUAL",$J$23="MENSUAL"),$N$17/12+N50,IF(AND(N23="SEMESTRAL",J23="MENSUAL"),N17/6+N50,IF(AND(N23="TRIMESTRAL",J23="MENSUAL"),N17/3+N50,IF(AND(N23="MENSUAL",J23="MENSUAL"),N17,"")))) -> 
C52: NIVEL DE SEGREGACIÓN *
C53: UNIDAD SEGREGADA (Ej. Facultad, Programa Académico, Área) | G53: RESULTADO | K53: ANALISIS DE DATOS SEGREGADO
C54: Facultad de Ciencias Administrativas, Económicas y Contables | G54: =97/4953 -> 0.01958409045 | K54: Para el IPA 2023, 97 estudiantes de la Facultad de Ciencias Administrativas, Económicas y Contables perdieron la condicion de estudiante, conforme al acuerdo 003 y 004 y Acuerdo 027 en la Universidad de Cundinamarca.
C55: Facultad de Ciencias Agropecuarias | G55: =53/2010 -> 0.0263681592 | K55: Para el IPA 2023, 53 estudiantes de la Facultad de Ciencias Agropecuarias perdieron la condicion de estudiante, conforme al acuerdo 003 y 004 y Acuerdo 027 en la Universidad de Cundinamarca.
C56: Facultad de Ciencias del Deporte | G56: =7/788 -> 0.008883248731 | K56: Para el IPA 2023, 7 estudiantes de la Facultad de Ciencias del Deporte perdieron la condicion de estudiante, conforme al acuerdo 003 y 004 y Acuerdo 027 en la Universidad de Cundinamarca.
C57: Facultad de Educación | G57: =4/220 -> 0.01818181818 | K57: Para el IPA 2023, 4 estudiantes de la Facultad de Educación perdieron condicion de estudiante, conforme al acuerdo 003 y 004 y Acuerdo 027 en la Universidad de Cundinamarca.
C58: Facultad de Ingeniería | G58: =94/3358 -> 0.02799285289 | K58: Para el IPA 2023, 94 estudiantes de la Facultad de Ingeniería perdieron la condicion de estudiante, conforme al acuerdo 003 y 004 y Acuerdo 027 en la Universidad de Cundinamarca.
C59: Facultad de Ciencias de la salud | G59: =0/394 -> 0 | K59: Para el IPA 2023, en la Facultad de Ciencias de la salud no se presentó perdida de condicion de estudiante en la Universidad de Cundinamarca.
C60: Facultad de Ciencias Sociales, Humanidades y Ciencias Políticas | G60: =1/566 -> 0.001766784452 | K60: Para el IPA 2023,1 estudiante de la Facultad de Ingeniería perdio la condicion de estudiante, conforme al acuerdo 003 y 004 y Acuerdo 027 en la Universidad de Cundinamarca.
C62: Diagonal 18 No. 20-29 Fusagasugá – Cundinamarca Teléfono (601) 8281483 Línea Gratuita 018000180414 www.ucundinamarca.edu.co E-mail: info@ucundinamarca.edu.co NIT: 890.680.062-2
C63: Documento controlado por el Sistema de Gestión de la Calidad Asegúrese que corresponde a la última versión consultando el Portal Institucional
G72: Estratégico | J72: Eficacia
G73: Misional | J73: Eficiencia
G74: Apoyo | J74: Acreditación
G75: Seguimiento, Medición, Análisis y Evaluación | J75: Positiva
G76: Direccionamiento Estratégico | J76: Negativa
G77: Planeación Institucional | J77: Por Unidad Regional
G78: Proyectos Especiales y Relaciones Interinstitucionales | J78: Por Facultad
G79: Sistemas Integrados | J79: Por Programa Académico
G80: Autoevaluación y Acreditación | J80: Por área
G81: Comunicaciones | J81: Por Laboratorio
G82: Formación y Aprendizaje | J82: Otros
G83: Ciencia, Tecnología e Innovación | J83: No Aplica
G84: Interacción Social Universitaria
G85: Bienestar Universitario
G86: Admisiones y Registro
G87: Graduados
G88: Dialogando con el Mundo
G89: Talento Humano
G90: Jurídica
G91: Financiera
G92: Sistemas y Tecnología
G93: Bienes y Servicios
G94: Documental
G95: Apoyo Académico
G96: Control Interno
G97: Control Disciplinario
G98: Servicio de Atención al Ciudadano

Sheet MAR-9
B2: REGRESAR
E5: MACROPROCESO ESTRATÉGICO | M5: CÓDIGO: ESGr027
E6: PROCESO GESTIÓN SISTEMAS INTEGRADOS - CALIDAD | M6: VERSIÓN: 8
E7: MATRIZ DE MEDICIÓN Y SEGUIMIENTO A LOS PROCESOS DE GESTIÓN | M7: VIGENCIA: 2023-07-28
M8: PÁGINA: 5 de 6
C10: FICHA DE INDICADOR
C12: MACROPROCESO | E12: Misional | I12: NOMBRE DEL INDICADOR | K12: Percepción de satisfacción de los estudiantes
C13: PROCESO GESTIÓN | E13: Admisiones y Registro
C14: RESPONSABLE DE MEDICIÓN | E14: Jefe de Oficina Admisiones y Registro
C16: 1. COMPORTAMIENTO DE INDICADOR
C17: CLASIFICACIÓN DE LA MEDICIÓN | E17: 4 | H17: TIPO DE INDICADOR | J17: Eficacia | L17: META | N17: 0.85
C18: FORMULA | E18: NUMERADOR | G18: (Total encuestas calificación mayor a 4) *100 | L18: UNIDAD DE MEDIDA | N18: Porcentaje
E19: DENOMINADOR | G19: Total encuestas
C20: TENDENCIA | E20: Positiva | H20: NIVEL DE SEGREGACIÓN * | J20: No Aplica | L20: ESCALA
L21: Deficiente | M21: Aceptable | N21: Bueno | O21: Excelente
L22: 0% - 65% | M22: 65.1% - 75% | N22: 75.1% - 85% | O22: 85.1% - 100%
C23: ORIGEN DE DATOS NUMERADOR | E23: Resultado en encuestas | H23: FRECUENCIA DE LA MEDICIÓN | J23: SEMESTRAL | L23: FRECUENCIA DE RESULTADO | N23: SEMESTRAL
C24: ORIGEN DE DATOS DENOMINADOR | E24: Resultado en encuestas
C26: RESULTADOS
J27: ANÁLISIS DE DATOS
J28: Para la oficina de Admisiones y Registro es de suma importancia conocer el grado de satisfacción de nuestros clientes para este caso la comunidad Universitaria, respecto a los trámites y servicios brindados, los cuales son procesos internos de la Oficina , de tal manera se realiza el análisis por medio de la encuesta de satisfacción U Cundinamarca siglo XXI para la vigencia IPA 2023, donde se evalúa los procesos como MARP 06 Grados y Títulos Académicos, MARP 02 Inscripción, Selección y Admisión de Estudiantes, MARP 07 Solicitud de Documentos, de los cuales 293 personas realizaron esta encuesta. Como resultado del ejercicio se logró evidenciar el aumento de la percepción satisfactorio en estos trámites o servicio como MARP 02 Inscripción, Selección y Admisión de Estudiantes, MARP 07 Solicitud de Documentos con un 73%.
J34: ACCIÓN FORMULADA
J35: Para la vigencia IIPA 2023, se implementarán acompañamientos a los aspirantes a través de herramientas tecnológicas, reforzando de igual manera la estrategia de divulgación y publicidad de información de los procedimientos en general por medio del portal web redes sociales, también capacitaciones, capsulas informativas y comunicación telefónica fomentando la equidad y diversidad. Para brindar una mejor información de los servicios y tramites de esta oficina se realizará la actualización del microstio web de la Oficina de Admisiones y Registro; respecto a Grados y Títulos académicos se dará acompañamiento a los graduandos para la revisión de su carpeta grado, como video del paso a paso del cargue de documentos y llamadas telefónicas.
J41: RESPONSABLE
J42: =E14 -> Jefe de Oficina Admisiones y Registro
C45: PERIODO DE EVALUACIÓN
C46: MES | D46: =IF(J23="MENSUAL","ENERO",IF(J23="TRIMESTRAL","MARZO",IF(J23="SEMESTRAL","JUNIO",IF(J23="ANUAL",YEAR(TODAY()),"")))) -> JUNIO | E46: =IF(J23="MENSUAL","FEBRERO",IF(J23="TRIMESTRAL","JUNIO",IF(J23="SEMESTRAL","DICIEMBRE",""))) -> DICIEMBRE | F46: =IF(J23="MENSUAL","MARZO",IF(J23="TRIMESTRAL","SEPTIEMBRE","")) ->  | G46: =IF(J23="MENSUAL","ABRIL",IF(J23="TRIMESTRAL","DICIEMBRE","")) ->  | H46: =IF(J23="MENSUAL","MAYO","") ->  | I46: =IF(J23="MENSUAL","JUNIO","") ->  | J46: =IF(J23="MENSUAL","JULIO","") ->  | K46: =IF(J23="MENSUAL","AGOSTO","") ->  | L46: =IF(J23="MENSUAL","SEPTIEMBRE","") ->  | M46: =IF(J23="MENSUAL","OCTUBRE","") ->  | N46: =IF(J23="MENSUAL","NOVIEMBRE","") ->  | O46: =IF(J23="MENSUAL","DICIEMBRE","") -> 
C47: =G18 -> (Total encuestas calificación mayor a 4) *100 | D47: 219
C48: =G19 -> Total encuestas | D48: 293
C49: VALOR | D49: =+D47/D48 -> 0.747440273 | E49: =IFERROR(IF($E$17=1,E47/E48,IF($E$17=2,E47,"")),"") -> 
C50: META PONDERADA | D50: 0.85 | F50: =IF(AND(N23="ANUAL",J23="MENSUAL"),N17/12+E50,IF(AND(N23="ANUAL",J23="TRIMESTRAL"),N17/4+E50,IF(AND(N23="SEMESTRAL",J23="MENSUAL"),N17/6+E50,IF(AND(N23="SEMESTRAL",J23="TRIMESTRAL"),N17/2,IF(AND(N23="TRIMESTRAL",J23="MENSUAL"),N17/3+E50,IF(AND(N23="TRIMESTRAL",J23="TRIMESTRAL"),N17,IF(AND(N23="MENSUAL",J23="MENSUAL"),N17,""))))))) ->  | G50: =IF(AND(N23="ANUAL",J23="MENSUAL"),N17/12+F50,IF(AND(N23="ANUAL",J23="TRIMESTRAL"),N17/4+F50,IF(AND(N23="SEMESTRAL",J23="MENSUAL"),N17/6+F50,IF(AND(N23="SEMESTRAL",J23="TRIMESTRAL"),N17/2+F50,IF(AND(N23="TRIMESTRAL",J23="MENSUAL"),N17/3,IF(AND(N23="TRIMESTRAL",J23="TRIMESTRAL"),N17,IF(AND(N23="MENSUAL",J23="MENSUAL"),N17,""))))))) ->  | H50: =IF(AND($N$23="ANUAL",$J$23="MENSUAL"),$N$17/12+G50,IF(AND(N23="SEMESTRAL",J23="MENSUAL"),N17/6+G50,IF(AND(N23="TRIMESTRAL",J23="MENSUAL"),N17/3+G50,IF(AND(N23="MENSUAL",J23="MENSUAL"),N17,"")))) ->  | I50: =IF(AND($N$23="ANUAL",$J$23="MENSUAL"),$N$17/12+H50,IF(AND(N23="SEMESTRAL",J23="MENSUAL"),N17/6+H50,IF(AND(N23="TRIMESTRAL",J23="MENSUAL"),N17/3+H50,IF(AND(N23="MENSUAL",J23="MENSUAL"),N17,"")))) ->  | J50: =IF(AND($N$23="ANUAL",$J$23="MENSUAL"),$N$17/12+I50,IF(AND(N23="SEMESTRAL",J23="MENSUAL"),N17/6,IF(AND(N23="TRIMESTRAL",J23="MENSUAL"),N17/3,IF(AND(N23="MENSUAL",J23="MENSUAL"),N17,"")))) ->  | K50: =IF(AND($N$23="ANUAL",$J$23="MENSUAL"),$N$17/12+J50,IF(AND(N23="SEMESTRAL",J23="MENSUAL"),N17/6+J50,IF(AND(N23="TRIMESTRAL",J23="MENSUAL"),N17/3+J50,IF(AND(N23="MENSUAL",J23="MENSUAL"),N17,"")))) ->  | L50: =IF(AND($N$23="ANUAL",$J$23="MENSUAL"),$N$17/12+K50,IF(AND(N23="SEMESTRAL",J23="MENSUAL"),N17/6+K50,IF(AND(N23="TRIMESTRAL",J23="MENSUAL"),N17/3+K50,IF(AND(N23="MENSUAL",J23="MENSUAL"),N17,"")))) ->  | M50: =IF(AND($N$23="ANUAL",$J$23="MENSUAL"),$N$17/12+L50,IF(AND(N23="SEMESTRAL",J23="MENSUAL"),N17/6+L50,IF(AND(N23="TRIMESTRAL",J23="MENSUAL"),N17/3,IF(AND(N23="MENSUAL",J23="MENSUAL"),N17,"")))) ->  | N50: =IF(AND($N$23="ANUAL",$J$23="MENSUAL"),$N$17/12+M50,IF(AND(N23="SEMESTRAL",J23="MENSUAL"),N17/6+M50,IF(AND(N23="TRIMESTRAL",J23="MENSUAL"),N17/3+M50,IF(AND(N23="MENSUAL",J23="MENSUAL"),N17,"")))) ->  | O50: =IF(AND($N$23="ANUAL",$J$23="MENSUAL"),$N$17/12+N50,IF(AND(N23="SEMESTRAL",J23="MENSUAL"),N17/6+N50,IF(AND(N23="TRIMESTRAL",J23="MENSUAL"),N17/3+N50,IF(AND(N23="MENSUAL",J23="MENSUAL"),N17,"")))) -> 
C52: NIVEL DE SEGREGACIÓN *
C53: UNIDAD SEGREGADA (Ej. Facultad, Programa Académico, Área) | G53: RESULTADO | K53: ANALISIS DE DATOS SEGREGADO
C54: MARP 06 Grados y Títulos Académicos | G54: =187/293 -> 0.638225256 | K54: El nivel de satisfacción o persepción postiva con respecto del procedimiento de Grados y titulos academicos es del 64% con respecto de la población total encuestada.
C55: MARP 02 Inscripción, Selección y Admisión de Estudiantes | G55: =215/293 -> 0.7337883959 | K55: El nivel de satisfacción o persepción postiva con respecto del procedimiento de Inscripción, Selección y Admisión de Estudiantes es del 73% con respecto de la población total encuestada.
C56: MARP 07 Solicitud de Documentos | G56: =213/293 -> 0.7269624573 | K56: El nivel de satisfacción o persepción postiva con respecto del procedimiento de Solicitud de Documentos es del 73% con respecto de la población total encuestada.
C59: Diagonal 18 No. 20-29 Fusagasugá – Cundinamarca Teléfono (601) 8281483 Línea Gratuita 018000180414 www.ucundinamarca.edu.co E-mail: info@ucundinamarca.edu.co NIT: 890.680.062-2
C60: Documento controlado por el Sistema de Gestión de la Calidad Asegúrese que corresponde a la última versión consultando el Portal Institucional
J65: Eficacia
J66: Eficiencia
J67: Acreditación
J68: Control
G69: Estratégico | J69: Eficacia
G70: Misional | J70: Eficiencia
G71: Apoyo | J71: Acreditación
G72: Seguimiento, Medición, Análisis y Evaluación | J72: Positiva
G73: Direccionamiento Estratégico | J73: Negativa
G74: Planeación Institucional | J74: Por Unidad Regional
G75: Proyectos Especiales y Relaciones Interinstitucionales | J75: Por Facultad
G76: Sistemas Integrados | J76: Por Programa Académico
G77: Autoevaluación y Acreditación | J77: Por área
G78: Comunicaciones | J78: Por Laboratorio
G79: Formación y Aprendizaje | J79: Otros
G80: Ciencia, Tecnología e Innovación | J80: No Aplica
G81: Interacción Social Universitaria
G82: Bienestar Universitario
G83: Admisiones y Registro
G84: Graduados
G85: Dialogando con el Mundo
G86: Talento Humano
G87: Jurídica
G88: Financiera
G89: Sistemas y Tecnología
G90: Bienes y Servicios
G91: Documental
G92: Apoyo Académico
G93: Control Interno
G94: Control Disciplinario
G95: Servicio de Atención al Ciudadano

Sheet ACTUALIZACIONES
C2: MACROPROCESO ESTRATÉGICO | E2: CÓDIGO: ESGr027
C3: PROCESO GESTIÓN SISTEMAS INTEGRADOS - CALIDAD | E3: VERSIÓN: 8
C4: MATRIZ DE MEDICIÓN Y SEGUIMIENTO A LOS PROCESOS DE GESTIÓN | E4: VIGENCIA: 2023-07-28
E5: PÁGINA: 6 de 6
B7: CONTROL DE ACTUALIZACIONES
B8: FECHA | C8: DESCRIPCIÓN DE LA ACTUALIZACIÓN | D8: RESPONSABLE | E8: CARGO
B9: 2022-08-19 | C9: Eliminación del inidcador MAR02 al evidenciar que no agrega valor a procedimiento de inscripcion, selección y admision de estudiantes | D9: OFICINA DE ADMISIONES Y REGISTRO | E9: JEFE OFICINA DE ADMISIONES
B10: 2022-08-19 | C10: Actualizacion a la formula y metodo de medicion del indicador MAR04 ya que no se tenia en cuenta la informacion relacionada con los cupos dispuestos según registros calificados de los programas académicos | D10: OFICINA DE ADMISIONES Y REGISTRO | E10: JEFE OFICINA DE ADMISIONES
B11: 2022-08-19 | C11: Actualizacion a la formula y metodo de medicion del indicador MAR05 ya que no se tenia en cuenta la informacion relacionada con los cupos dispuestos según registros calificados de los programas académicos | D11: OFICINA DE ADMISIONES Y REGISTRO | E11: JEFE OFICINA DE ADMISIONES
B12: 2023-04-13 | C12: Actualización a la formula, meta y escala en el indicador MAR4-MAR5, esto con el fin de generar un ambiente retador para el proceso en 2023, ya que para 2022 se mantuvo la constante en la meta semestral por encima del 95 % | D12: OFICINA DE ADMISIONES Y REGISTRO | E12: JEFE OFICINA DE ADMISIONES
B13: 2023-04-13 | C13: Eliminación del indicador MAR8, donde queda establecido como compromiso que la información relacionada con el número de admitidos en condiciones priorizadas se deberá migrar a un tablero de control, cargado a la página web institucional, donde se evidencie la información histórica por periodos. | D13: OFICINA DE ADMISIONES Y REGISTRO | E13: JEFE OFICINA DE ADMISIONES
B26: Diagonal 18 No. 20-29 Fusagasugá – Cundinamarca Teléfono (601) 8281483 Línea Gratuita 018000180414 www.ucundinamarca.edu.co E-mail: info@ucundinamarca.edu.co NIT: 890.680.062-2
B29: Documento controlado por el Sistema de Gestión de la Calidad Asegúrese que corresponde a la última versión consultando el Portal Institucional

Sheet ITEM (hidden)
A1: MENSUAL | C1: NÚMERO
A2: TRIMESTRAL | C2: PORCENTAJE
A3: SEMESTRAL
A4: ANUAL
